Workbook

Sheet Product
A1: Product | B1: Product Name | C1: Razer | D1: Price USDT | E1: Price Toman | F1: Profit | G1: Sell Toman | H1: Sell USDT | I1: Amount Profit | J1: Real Profit | K1: PSD
A2: UC LOGIN | B2: 660یوسی لاگین | C2: None | D2: 7.8 | E2: =D2*$N$6 -> 1365000 | F2: 0.05 | G2: =ROUND(((E2*F2)+E2),-3) -> 1433000 | H2: =G2/$N$6 -> 8.188571429 | I2: =G2-E2 -> 68000 | J2: =I2/E2 -> 0.04981684982 | K2: =TEXT(G2,"#,### ") -> 1,433,000 | M2: 🗓Date | N2: 1404/11/15
B3: 1320یوسی لاگین | D3: 15.6 | E3: 2730000 | F3: 0.05 | G3: =ROUND(((E3*F3)+E3),-3) -> 2867000 | H3: 16.38285714 | I3: =G3-E3 -> 137000 | J3: =I3/E3 -> 0.05018315018 | K3: =TEXT(G3,"#,### ") -> 2,867,000
B4: 1800یوسی لاگین | D4: 18.5 | E4: 3237500 | F4: 0.05 | G4: =ROUND(((E4*F4)+E4),-3) -> 3399000 | H4: 19.42285714 | I4: =G4-E4 -> 161500 | J4: =I4/E4 -> 0.04988416988 | K4: =TEXT(G4,"#,### ") -> 3,399,000
B5: 3850یوسی لاگین | D5: 36 | E5: 6300000 | F5: 0.05 | G5: 6615000 | H5: 37.8 | I5: 315000 | J5: 0.05 | K5: 6,615,000 | N5: 2026-02-04
B6: 8100یوسی لاگین | D6: 76 | E6: 13300000 | F6: 0.05 | G6: 13965000 | H6: 79.8 | I6: 665000 | J6: 0.05 | K6: 13,965,000 | M6: 💲Price USDT | N6: 175000
A7: Pack | B7: پک یک دلاری | C7: None | D7: 1 | E7: 175000 | F7: 0.1 | G7: 193000 | H7: 1.102857143 | I7: 18000 | J7: 0.1028571429 | K7: 193,000 | M7: 🐍Price Razer | N7: =N6*N9 -> 148750
B8: پک سه دلاری | D8: 2.7 | E8: 472500 | F8: 0.1 | G8: 520000 | H8: 2.971428571 | I8: 47500 | J8: 0.1005291005 | K8: 520,000 | M8: 🐍Razer Ratio | N8: 85
B9: پک پنج دلاری | D9: 4.5 | E9: 787500 | F9: 0.1 | G9: 866000 | H9: 4.948571429 | I9: 78500 | J9: 0.09968253968 | K9: 866,000 | M9: Ratio/100 | N9: =N8/100 -> 0.85
B10: متیک فورج | D10: 2.8 | E10: 490000 | F10: 0.1 | G10: 539000 | H10: 3.08 | I10: 49000 | J10: 0.1 | K10: 539,000
A11: Prime | B11: پرایم 1 ماه | C11: None | D11: 1 | E11: 175000 | F11: 0.1 | G11: 193000 | H11: 1.102857143 | I11: 18000 | J11: 0.1028571429 | K11: 193,000
B12: پرایم 3 ماه | D12: 2.7 | E12: 472500 | F12: 0.1 | G12: 520000 | H12: 2.971428571 | I12: 47500 | J12: 0.1005291005 | K12: 520,000
B13: پرایم 6 ماه | D13: 5.3 | E13: 927500 | F13: 0.1 | G13: 1020000 | H13: 5.828571429 | I13: 92500 | J13: 0.09973045822 | K13: 1,020,000
B14: پرایم 12 ماه | D14: 10.5 | E14: 1837500 | F14: 0.1 | G14: 2021000 | H14: 11.54857143 | I14: 183500 | J14: 0.09986394558 | K14: 2,021,000
B15: پرایم + پرایم پلاس | D15: =D11+D16 -> 9.5 | E15: 1662500 | F15: 0.1 | G15: 1829000 | H15: 10.45142857 | I15: 166500 | J15: 0.1001503759 | K15: 1,829,000
B16: پرایم پلاس 1 ماه | D16: 8.5 | E16: 1487500 | F16: 0.1 | G16: 1636000 | H16: 9.348571429 | I16: 148500 | J16: 0.09983193277 | K16: 1,636,000
B17: پرایم پلاس 3 ماه | D17: 25.2 | E17: 4410000 | F17: 0.1 | G17: 4851000 | H17: 27.72 | I17: 441000 | J17: 0.1 | K17: 4,851,000
B18: پرایم پلاس 6 ماه | D18: 50 | E18: 8750000 | F18: 0.1 | G18: 9625000 | H18: 55 | I18: 875000 | J18: 0.1 | K18: 9,625,000
B19: پرایم پلاس 12 ماه | D19: 102 | E19: 17850000 | F19: 0.1 | G19: 19635000 | H19: 112.2 | I19: 1785000 | J19: 0.1 | K19: 19,635,000
A20: UC | B20: 60یوسی | C20: 1 | D20: =C20*$N$9 -> 0.85 | E20: 148750 | F20: 0.11 | G20: 165000 | H20: 0.9428571429 | I20: 16250 | J20: 0.1092436975 | K20: 165,000
B21: 120یوسی | C21: 2 | D21: 1.7 | E21: 297500 | F21: 0.1 | G21: 327000 | H21: 1.868571429 | I21: 29500 | J21: 0.09915966387 | K21: 327,000
B22: 180یوسی | C22: 3 | D22: 2.55 | E22: 446250 | F22: 0.1 | G22: 491000 | H22: 2.805714286 | I22: 44750 | J22: 0.100280112 | K22: 491,000
B23: 240یوسی | C23: 4 | D23: 3.4 | E23: 595000 | F23: 0.09 | G23: 649000 | H23: 3.708571429 | I23: 54000 | J23: 0.09075630252 | K23: 649,000
B24: 325یوسی | C24: 5 | D24: 4.25 | E24: 743750 | F24: 0.1 | G24: 818000 | H24: 4.674285714 | I24: 74250 | J24: 0.09983193277 | K24: 818,000
B25: 385یوسی | C25: =C24+C20 -> 6 | D25: 5.1 | E25: 892500 | F25: 0.09 | G25: 973000 | H25: 5.56 | I25: 80500 | J25: 0.09019607843 | K25: 973,000
B26: 445یوسی | C26: =C24+C21 -> 7 | D26: 5.95 | E26: 1041250 | F26: 0.09 | G26: 1135000 | H26: 6.485714286 | I26: 93750 | J26: 0.09003601441 | K26: 1,135,000
B27: 660یوسی | C27: 10 | D27: 8.5 | E27: 1487500 | F27: 0.1 | G27: 1636000 | H27: 9.348571429 | I27: 148500 | J27: 0.09983193277 | K27: 1,636,000
B28: 720یوسی | C28: =C27+C20 -> 11 | D28: 9.35 | E28: 1636250 | F28: 0.09 | G28: 1784000 | H28: 10.19428571 | I28: 147750 | J28: 0.09029793736 | K28: 1,784,000
B29: 780یوسی | C29: =C27+C21 -> 12 | D29: 10.2 | E29: =D29*$N$6 -> 1785000 | F29: 0.09 | G29: 1946000 | H29: 11.12 | I29: 161000 | J29: 0.09019607843 | K29: 1,946,000
B30: 840یوسی | C30: 13 | D30: 11.05 | E30: 1933750 | F30: 0.09 | G30: 2108000 | H30: 12.04571429 | I30: 174250 | J30: 0.09010989011 | K30: 2,108,000
B31: 985یوسی | C31: =C27+C24 -> 15 | D31: 12.75 | E31: 2231250 | F31: 0.09 | G31: 2432000 | H31: 13.89714286 | I31: 200750 | J31: 0.0899719888 | K31: 2,432,000
B32: 1320یوسی | C32: =C27+C27 -> 20 | D32: 17 | E32: 2975000 | F32: 0.09 | G32: 3243000 | H32: 18.53142857 | I32: 268000 | J32: 0.09008403361 | K32: 3,243,000
B33: 1800یوسی | C33: 25 | D33: 21.25 | E33: 3718750 | F33: 0.08 | G33: 4016000 | H33: 22.94857143 | I33: 297250 | J33: 0.07993277311 | K33: 4,016,000
B34: 1920یوسی | C34: =C33+C21 -> 27 | D34: 22.95 | E34: 4016250 | F34: 0.079 | G34: 4334000 | H34: =G34/$N$6 -> 24.76571429 | I34: 317750 | J34: 0.07911609088 | K34: 4,334,000
B35: 2460یوسی | C35: =C33+C27 -> 35 | D35: 29.75 | E35: 5206250 | F35: 0.078 | G35: 5612000 | H35: 32.06857143 | I35: 405750 | J35: 0.07793517407 | K35: 5,612,000
B36: 3850یوسی | C36: 50 | D36: 42.5 | E36: 7437500 | F36: 0.08 | G36: 8033000 | H36: 45.90285714 | I36: 595500 | J36: 0.08006722689 | K36: 8,033,000
B37: 5650یوسی | C37: =C36+C33 -> 75 | D37: 63.75 | E37: 11156250 | F37: 0.075 | G37: 11993000 | H37: 68.53142857 | I37: 836750 | J37: 0.07500280112 | K37: 11,993,000
B38: 8100یوسی | C38: 100 | D38: 84 | E38: 14700000 | F38: 0.08 | G38: 15876000 | H38: 90.72 | I38: 1176000 | J38: 0.08 | K38: =TEXT(G38,"#,### ") -> 15,876,000
B39: 11950یوسی | C39: =C38+C36 -> 150 | D39: 127.5 | E39: 22312500 | F39: 0.07 | G39: 23874000 | H39: 136.4228571 | I39: 1561500 | J39: 0.06998319328 | K39: =TEXT(G39,"#,### ") -> 23,874,000
B40: 16200یوسی | C40: =C38*2 -> 200 | D40: 170 | E40: 29750000 | F40: 0.07 | G40: 31833000 | H40: 181.9028571 | I40: 2083000 | J40: 0.07001680672 | K40: =TEXT(G40,"#,### ") -> 31,833,000
B41: 24300یوسی | C41: =C38*3 -> 300 | D41: 255 | E41: 44625000 | F41: 0.07 | G41: 47749000 | H41: 272.8514286 | I41: 3124000 | J41: 0.07000560224 | K41: 47,749,000
B42: 32400یوسی | C42: =C38*4 -> 400 | D42: 340 | E42: 59500000 | F42: 0.07 | G42: 63665000 | H42: 363.8 | I42: 4165000 | J42: 0.07 | K42: 63,665,000
A43: CP | B43: 80سی پی | C43: None | D43: 0.8 | E43: 140000 | F43: 0.1 | G43: 154000 | H43: 0.88 | I43: =G43-E43 -> 14000 | J43: 0.1 | K43: =TEXT(G43,"#,### ") -> 154,000
B44: 160سی پی | D44: =D43*2 -> 1.6 | E44: 280000 | F44: 0.1 | G44: 308000 | H44: 1.76 | I44: 28000 | J44: 0.1 | K44: =TEXT(G44,"#,### ") -> 308,000
B45: 320سی پی | D45: =D43*4 -> 3.2 | E45: 560000 | F45: 0.1 | G45: 616000 | H45: 3.52 | I45: 56000 | J45: 0.1 | K45: 616,000
B46: 420سی پی | D46: 4.5 | E46: 787500 | F46: 0.1 | G46: 866000 | H46: 4.948571429 | I46: 78500 | J46: 0.09968253968 | K46: 866,000
B47: 880سی پی | D47: 8.6 | E47: 1505000 | F47: 0.1 | G47: 1656000 | H47: 9.462857143 | I47: 151000 | J47: 0.1003322259 | K47: 1,656,000
B48: 1760سی پی | D48: =D47*2 -> 17.2 | E48: 3010000 | F48: 0.1 | G48: 3311000 | H48: 18.92 | I48: 301000 | J48: 0.1 | K48: 3,311,000
B49: 2400سی پی | D49: 21.5 | E49: 3762500 | F49: 0.1 | G49: 4139000 | H49: 23.65142857 | I49: 376500 | J49: 0.1000664452 | K49: 4,139,000
B50: 2820سی پی | D50: =D49+D46 -> 26 | E50: 4550000 | F50: 0.1 | G50: 5005000 | H50: 28.6 | I50: 455000 | J50: 0.1 | K50: 5,005,000
B51: 3280سی پی | D51: =D49+D47 -> 30.1 | E51: 5267500 | F51: 0.1 | G51: 5794000 | H51: 33.10857143 | I51: 526500 | J51: 0.09995253916 | K51: 5,794,000
B52: 4160سی پی | D52: =D51+D47 -> 38.7 | E52: 6772500 | F52: 0.1 | G52: 7450000 | H52: 42.57142857 | I52: 677500 | J52: 0.100036914 | K52: 7,450,000
B53: 5000سی پی | D53: 42.5 | E53: 7437500 | F53: 0.1 | G53: 8181000 | H53: 46.74857143 | I53: 743500 | J53: 0.09996638655 | K53: 8,181,000
B54: 10800سی پی | D54: 81.5 | E54: 14262500 | F54: 0.1 | G54: 15689000 | H54: 89.65142857 | I54: 1426500 | J54: 0.1000175285 | K54: 15,689,000
A55: GEM Clash of Clans | B55: 80 | C55: None | D55: 1.1 | E55: =D55*$N$6 -> 192500 | F55: 0.1 | G55: =ROUND(((E55*F55)+E55),-3) -> 212000 | H55: =G55/$N$6 -> 1.211428571 | I55: 19500 | J55: =I55/E55 -> 0.1012987013 | K55: 212,000
B56: 500 | D56: 4.8 | E56: 840000 | F56: 0.1 | G56: 924000 | H56: 5.28 | I56: 84000 | J56: 0.1 | K56: 924,000
B57: 1200 | D57: 9.1 | E57: 1592500 | F57: 0.1 | G57: 1752000 | H57: 10.01142857 | I57: 159500 | J57: 0.1001569859 | K57: 1,752,000
B58: 2500 | D58: 18.4 | E58: 3220000 | F58: 0.1 | G58: 3542000 | H58: 20.24 | I58: 322000 | J58: 0.1 | K58: 3,542,000
B59: 6500 | D59: 45.2 | E59: 7910000 | F59: 0.1 | G59: 8701000 | H59: 49.72 | I59: 791000 | J59: 0.1 | K59: 8,701,000
B60: 14000 | D60: 89.7 | E60: 15697500 | F60: 0.1 | G60: 17267000 | H60: 98.66857143 | I60: 1569500 | J60: 0.0999840739 | K60: 17,267,000
B61: Gold Pass 3$ | D61: 3 | E61: 525000 | F61: 0.1 | G61: 578000 | H61: 3.302857143 | I61: 53000 | J61: 0.100952381 | K61: 578,000
B62: Gold Pass 7$ | D62: 6.8 | E62: 1190000 | F62: 0.1 | G62: 1309000 | H62: 7.48 | I62: 119000 | J62: 0.1 | K62: 1,309,000
A63: Gift Card PS | B63: گیفت کارت 10 دلاری | C63: None | D63: 9.064 | E63: =D63*$N$6 -> 1586200 | F63: 0.1 | G63: 1745000 | H63: 9.971428571 | I63: 158800 | J63: 0.1001134788 | K63: 1,745,000
B64: گیفت کارت 20 دلاری | D64: 18.128 | E64: 3172400 | F64: 0.1 | G64: 3490000 | H64: 19.94285714 | I64: 317600 | J64: 0.1001134788 | K64: 3,490,000
B65: گیفت کارت 50 دلاری | D65: 45.32 | E65: 7931000 | F65: 0.1 | G65: 8724000 | H65: 49.85142857 | I65: 793000 | J65: 0.09998739125 | K65: 8,724,000
B66: گیفت کارت 100 دلاری | D66: 90.64 | E66: 15862000 | F66: 0.1 | G66: 17448000 | H66: 99.70285714 | I66: 1586000 | J66: 0.09998739125 | K66: 17,448,000
B67: گیفت کارت 120 دلاری | D67: 108.768 | E67: 19034400 | F67: 0.1 | G67: 20938000 | H67: 119.6457143 | I67: 1903600 | J67: 0.1000084058 | K67: 20,938,000
B68: گیفت کارت 160 دلاری | D68: 145.024 | E68: 25379200 | F68: 0.1 | G68: 27917000 | H68: 159.5257143 | I68: 2537800 | J68: 0.09999527172 | K68: 27,917,000
B69: گیفت کارت 200 دلاری | D69: 181.28 | E69: 31724000 | F69: 0.1 | G69: 34896000 | H69: 199.4057143 | I69: =G69-E69 -> 3172000 | J69: 0.09998739125 | K69: 34,896,000
A70: Redeem Code | B70: 60یوسی | C70: =C20 -> 1 | D70: =C70*$N$9 -> 0.85 | E70: =D70*$N$6 -> 148750 | F70: 1000 | G70: =ROUND(((E70*J70)+E70),-3) -> 164000 | H70: =G70/$N$6 -> 0.9371428571 | I70: =G70-E70 -> 15250 | J70: =((I20-F70)/E70) -> 0.1025210084 | K70: =TEXT(G70,"#,### ") -> 164,000
B71: 325یوسی | C71: =C24 -> 5 | D71: 4.25 | E71: =D71*$N$6 -> 743750 | F71: 3000 | G71: 815000 | H71: 4.657142857 | I71: =G71-E71 -> 71250 | J71: =((I24-F71)/E71) -> 0.09579831933 | K71: 815,000
B72: 660یوسی | C72: =C27 -> 10 | D72: 8.5 | E72: 1487500 | F72: 6000 | G72: 1630000 | H72: 9.314285714 | I72: 142500 | J72: =((I27-F72)/E72) -> 0.09579831933 | K72: 1,630,000
B73: 1800یوسی | C73: =C33 -> 25 | D73: 21.25 | E73: 3718750 | F73: 5000 | G73: 4011000 | H73: 22.92 | I73: 292250 | J73: =((I33-F73)/E73) -> 0.07858823529 | K73: 4,011,000
B74: 3850یوسی | C74: =C36 -> 50 | D74: 42.5 | E74: 7437500 | F74: 7000 | G74: 8026000 | H74: 45.86285714 | I74: 588500 | J74: =((I36-F74)/E74) -> 0.07912605042 | K74: 8,026,000
B75: 8100یوسی | C75: =C38 -> 100 | D75: 85 | E75: 14875000 | F75: 9000 | G75: 16042000 | H75: 91.66857143 | I75: 1167000 | J75: =((I38-F75)/E75) -> 0.07845378151 | K75: 16,042,000
A76: یوسی افر | B76: از 2300 تا 3000 یوسی | C76: None | D76: 25.5 | E76: =D76*$N$6 -> 4462500 | F76: 0.05 | G76: =ROUND(((E76*F76)+E76),-3) -> 4686000 | H76: =G76/$N$6 -> 26.77714286 | I76: =G76-E76 -> 223500 | J76: =I76/E76 -> 0.05008403361 | K76: =TEXT(G76,"#,### ") -> 4,686,000
B77: از 4500 تا 6500 یوسی | D77: 47 | E77: =D77*$N$6 -> 8225000 | F77: 0.05 | G77: =ROUND(((E77*F77)+E77),-3) -> 8636000 | H77: =G77/$N$6 -> 49.34857143 | I77: =G77-E77 -> 411000 | J77: =I77/E77 -> 0.04996960486 | K77: =TEXT(G77,"#,### ") -> 8,636,000
B78: از 9500 تا 15000 یوسی | D78: 89 | E78: 15575000 | F78: 0.05 | G78: 16354000 | H78: 93.45142857 | I78: 779000 | J78: 0.05001605136 | K78: 16,354,000
B79: از 18000 تا 23000 یوسی | D79: 177 | E79: 30975000 | F79: 0.05 | G79: 32524000 | H79: 185.8514286 | I79: 1549000 | J79: 0.05000807103 | K79: 32,524,000
B80: از 26000 تا 30000 یوسی | D80: 262 | E80: =D80*$N$6 -> 45850000 | F80: 0.05 | G80: 48143000 | H80: =G80/$N$6 -> 275.1028571 | I80: 2293000 | J80: 0.05001090513 | K80: 48,143,000

Sheet Site
A1: شناسه | B1: نام | C1: منتشر شده | D1: در انبار؟ | E1: قیمت فروش ویژه | F1: قیمت عادی
A2: 10246 | B2: یوسی لاگین 600 | C2: 1 | D2: 1 | F2: =Product!G2 -> 1433000
A3: 10247 | B3: یوسی لاگین 1320 | C3: 1 | D3: 1 | F3: =Product!G3 -> 2867000
A4: 8809 | B4: یوسی لاگین 1800 | C4: 1 | D4: 1 | F4: =Product!$G$4 -> 3399000
A5: 3766 | B5: یوسی لاگین 3850 | C5: 1 | D5: 1 | F5: =Product!$G$5 -> 6615000
A6: 154033 | B6: یوسی لاگین 8100 | C6: 1 | D6: 1 | F6: =Product!$G$6 -> 13965000
A7: 10249 | B7: پک 1 دلاری | C7: 1 | D7: 1 | F7: =Product!$G$7 -> 193000
A8: 10250 | B8: پک 3 دلاری | C8: 1 | D8: 1 | F8: =Product!$G$8 -> 520000
A9: 24422 | B9: پک 5 دلاری | C9: 1 | D9: 1 | F9: =Product!$G$9 -> 866000
A10: 38033 | B10: میتیک فورج | C10: 1 | D10: 1 | F10: =Product!$G$10 -> 539000
A11: 24188 | B11: پرایم ماهانه | C11: 1 | D11: 1 | F11: =Product!$G$11 -> 193000
A12: 154029 | B12: پرایم 3 ماهه | C12: 1 | D12: 1 | F12: =Product!$G$12 -> 520000
A13: 57530 | B13: پرایم 6 ماهه | C13: 1 | D13: 1 | F13: =Product!$G$13 -> 1020000
A14: 57531 | B14: پرایم 12 ماهه | C14: 1 | D14: 1 | F14: =Product!$G$14 -> 2021000
A15: 38031 | B15: پرایم+پرایم پلاس | C15: 1 | D15: 1 | F15: =Product!$G$15 -> 1829000
A16: 3764 | B16: پرایم پلاس | C16: 1 | D16: 1 | F16: =Product!$G$16 -> 1636000
A17: 41094 | B17: پرایم پلاس 3 ماهه | C17: 1 | D17: 1 | F17: =Product!$G$17 -> 4851000
A18: 41095 | B18: پرایم پلاس 6 ماهه | C18: 1 | D18: 1 | F18: =Product!$G$18 -> 9625000
A19: 41096 | B19: پرایم پلاس 12 ماهه | C19: 1 | D19: 1 | F19: =Product!$G$19 -> 19635000
A20: 73 | B20: 60 یوسی | C20: 1 | D20: 1 | F20: =Product!$G$20 -> 165000
A21: 82 | B21: 120 یوسی | C21: 1 | D21: 1 | F21: =Product!$G$21 -> 327000
A22: 83 | B22: 180 یوسی | C22: 1 | D22: 1 | F22: =Product!$G$22 -> 491000
A23: 84 | B23: 240 یوسی | C23: 1 | D23: 1 | F23: =Product!$G$23 -> 649000
A24: 85 | B24: 325 یوسی | C24: 1 | D24: 1 | F24: =Product!$G$24 -> 818000
A25: 86 | B25: 385 یوسی | C25: 1 | D25: 1 | F25: =Product!$G$25 -> 973000
A26: 10433 | B26: 445 یوسی | C26: 1 | D26: 1 | F26: =Product!$G$26 -> 1135000
A27: 104 | B27: 660 یوسی | C27: 1 | D27: 1 | F27: =Product!$G$27 -> 1636000
A28: 103 | B28: 720 یوسی | C28: 1 | D28: 1 | F28: =Product!$G$28 -> 1784000
A29: 105 | B29: 780 یوسی | C29: 1 | D29: 1 | F29: =Product!$G$29 -> 1946000
A30: 107 | B30: 840 یوسی | C30: 1 | D30: 1 | F30: =Product!$G$30 -> 2108000
A31: 108 | B31: 985 یوسی | C31: 1 | D31: 1 | F31: =Product!$G$31 -> 2432000
A32: 109 | B32: 1320 یوسی | C32: 1 | D32: 1 | F32: =Product!$G$32 -> 3243000
A33: 110 | B33: 1800 یوسی | C33: 1 | D33: 1 | F33: =Product!$G$33 -> 4016000
A34: 10244 | B34: 1920 یوسی | C34: 1 | D34: 1 | F34: =Product!$G$34 -> 4334000
A35: 10436 | B35: 2460 یوسی | C35: 1 | D35: 1 | F35: =Product!$G$35 -> 5612000
A36: 257 | B36: 3850 یوسی | C36: 1 | D36: 1 | F36: =Product!$G$36 -> 8033000
A37: 7978 | B37: 5650 یوسی | C37: 1 | D37: 1 | F37: =Product!$G$37 -> 11993000
A38: 560 | B38: 8100 یوسی | C38: 1 | D38: 1 | F38: =Product!$G$38 -> 15876000
A39: 159781 | B39: 11950 یوسی | C39: 1 | D39: 1 | F39: =Product!$G$39 -> 23874000
A40: 52114 | B40: 16200 یوسی | C40: 1 | D40: 1 | F40: =Product!$G$40 -> 31833000
A41: 52115 | B41: 24300 یوسی | C41: 1 | D41: 1 | F41: =Product!$G$41 -> 47749000
A42: 52116 | B42: 32400 یوسی | C42: 1 | D42: 1 | F42: =Product!$G$42 -> 63665000
A43: 2726 | B43: 80 سی پی | C43: 1 | D43: 1 | F43: =Product!$G$43 -> 154000
A44: 3778 | B44: 160 سی پی | C44: 1 | D44: 1 | F44: =Product!$G$44 -> 308000
A45: 3786 | B45: 320 سی پی | C45: 1 | D45: 1 | F45: =Product!$G$45 -> 616000
A46: 3787 | B46: 420 سی پی | C46: 1 | D46: 1 | F46: =Product!$G$46 -> 866000
A47: 3789 | B47: 880 سی پی | C47: 1 | D47: 1 | F47: =Product!$G$47 -> 1656000
A48: 3791 | B48: 1760 سی پی | C48: 1 | D48: 1 | F48: =Product!$G$48 -> 3311000
A49: 7783 | B49: 2400 سی پی | C49: 1 | D49: 1 | F49: =Product!$G$49 -> 4139000
A50: 7784 | B50: 2820 سی پی | C50: 1 | D50: 1 | F50: =Product!$G$50 -> 5005000
A51: 7785 | B51: 3280 سی پی | C51: 1 | D51: 1 | F51: =Product!$G$51 -> 5794000
A52: 7786 | B52: 4160 سی پی | C52: 1 | D52: 1 | F52: =Product!$G$52 -> 7450000
A53: 7787 | B53: 5000 سی پی | C53: 1 | D53: 1 | F53: =Product!$G$53 -> 8181000
A54: 10448 | B54: 10800 سی پی | C54: 1 | D54: 1 | F54: =Product!$G$54 -> 15689000
A55: 3837 | B55: 80 جم کلش آف کلنز | C55: 1 | D55: 1 | F55: =Product!$G$55 -> 212000
A56: 3845 | B56: 500 جم کلش آف کلنز | C56: 1 | D56: 1 | F56: =Product!$G$56 -> 924000
A57: 3847 | B57: 1200 جم کلش آف کلنز | C57: 1 | D57: 1 | F57: =Product!$G$57 -> 1752000
A58: 3848 | B58: 2500 جم کلش آف کلنز | C58: 1 | D58: 1 | F58: =Product!$G$58 -> 3542000
A59: 3851 | B59: 6500 جم کلش آف کلنز | C59: 1 | D59: 1 | F59: =Product!$G$59 -> 8701000
A60: 3854 | B60: 14000 جم کلش آف کلنز | C60: 1 | D60: 1 | F60: =Product!$G$60 -> 17267000
A61: 3871 | B61: بلیط طلایی کلش آف کلنز | C61: 1 | D61: 1 | F61: =Product!$G$61 -> 578000
A62: 70276 | B62: گیفت کارت 10 دلاری | C62: 1 | D62: 1 | F62: =Product!$G$63 -> 1745000
A63: 37608 | B63: گیفت کارت 20 دلاری | C63: 1 | D63: 1 | F63: =Product!$G$64 -> 3490000
A64: 37612 | B64: گیفت کارت 50 دلاری | C64: 1 | D64: 1 | F64: =Product!$G$65 -> 8724000
A65: 37613 | B65: گیفت کارت 100 دلاری | C65: 1 | D65: 1 | F65: =Product!$G$66 -> 17448000
A66: 37614 | B66: گیفت کارت 120 دلاری | C66: 1 | D66: 1 | F66: =Product!$G$67 -> 20938000
A67: 37615 | B67: گیفت کارت 160 دلاری | C67: 1 | D67: 1 | F67: =Product!$G$68 -> 27917000
A68: 37616 | B68: گیفت کارت 200 دلاری | C68: 1 | D68: 1 | F68: =Product!$G$69 -> 34896000
A69: 92772 | B69: ردیم کد 60 یوسی | C69: 1 | D69: 1 | F69: =Product!$G$70 -> 164000
A70: 92771 | B70: ردیم کد 325 یوسی | C70: 1 | D70: 1 | F70: =Product!$G$71 -> 815000
A71: 92770 | B71: ردیم کد 660 یوسی | C71: 1 | D71: 1 | F71: =Product!$G$72 -> 1630000
A72: 92769 | B72: ردیم کد 1800 یوسی | C72: 1 | D72: 1 | F72: =Product!$G$73 -> 4011000
A73: 92768 | B73: ردیم کد 3850 یوسی | C73: 1 | D73: 1 | F73: =Product!$G$74 -> 8026000
A74: 92767 | B74: ردیم کد 8100 یوسی | C74: 1 | D74: 1 | F74: =Product!$G$75 -> 16042000
B75: از 2300 تا 3000 یوسی | C75: 1 | D75: 1 | F75: =Product!$G$76 -> 4686000
B76: از 4500 تا 6500 یوسی | C76: 1 | D76: 1 | F76: =Product!$G$77 -> 8636000
B77: از 9500 تا 15000 یوسی | C77: 1 | D77: 1 | F77: =Product!$G$78 -> 16354000
B78: از 18000 تا 23000 یوسی | C78: 1 | D78: 1 | F78: =Product!$G$79 -> 32524000
B79: از 26000 تا 30000 یوسی | C79: 1 | D79: 1 | F79: =Product!$G$80 -> 48143000
